[Event "GER-ch Youth-U18w 2022"]
[Site "Willingen"]
[Date "2022.06.11"]
[Round "9.6"]
[White "Schneider, Katharina"]
[Black "Wilmink, Anna"]
[Result "1/2-1/2"]
[ECO "B32"]
[WhiteElo "1810"]
[BlackElo "1700"]
[Annotator "NA RC COMBH"]
[PlyCount "148"]
[EventDate "2022.06.05"]
[EventType "swiss"]
[EventRounds "9"]
[EventCountry "GER"]
[SourceTitle "playchess.com"]
[Source "ChessBase"]
[SourceQuality "1"]
[TimeControl "40/4500+30:900+30"]

1. e4 {[%emt 0:00:00]} c5 {[%emt 0:00:00]} 2. Nf3 {[%emt 0:00:00]} Nc6 {[%emt 0:00:00]} 3. d4 {[%emt 0:00:00]} cxd4 {[%emt 0:00:00]} 4. Nxd4 {[%emt 0:00:00]} e5 {[%emt 0:00:00]} 5. Nb5 {[%emt 0:00:00]} d6 {[%emt 0:00:00]} 6. c4 {[%emt 0:00:00]} a6 {[%emt 0:00:00] 6...Be6 is the modern continuation.} 7. N5a3 {[%emt 0:00:00]} Nge7 {[%emt 0:00:00]} 8. Nc3 {[%emt 0:00:00]} Nd4 {[%emt 0:00:00]} 9. Nc2 {[%emt 0:01:02]} Ndc6 {[%emt 0:00:00] [#]} 10. Be3 $146 {[%emt 0:04:44]} ({Predecessor:} 10. Be2 g6 11. O-O Be6 12. Bg5 Bg7 13. Qd2 Qd7 14. Nd5 Rd8 15. Bh6 Kf8 16. Bxg7+ Kxg7 17. Qg5 Bxd5 18. exd5 {1-0 (50) Rata,A (1539)-Stan,A (1398) Calimanesti 2015}) 10... Rb8 {[%emt 0:01:56]} 11. Qd2 {[%emt 0:02:14]} Be6 {[%emt 0:02:51]} 12. Be2 {[%emt 0:02:49]} Ng6 {[%emt 0:04:48]} 13. O-O {[%emt 0:02:52]} Rc8 {[%emt 0:02:24]} 14. b3 {[%emt 0:11:47]} Be7 {[%emt 0:02:12]} 15. Rfd1 {[%emt 0:02:25]} O-O {[%emt 0:01:01]} 16. f3 {[%emt 0:03:35]} Qc7 {[%emt 0:09:14]} 17. Rac1 {[%emt 0:01:29]} Qb8 {[%emt 0:01:56]} 18. Kh1 {[%emt 0:00:27]} h6 {[%emt 0:02:57]} ({Black should play} 18... f5) 19. Bf1 {[%emt 0:05:01]} Rfe8 {[%emt 0:05:49]} 20. Na4 {[%emt 0:13:42]} b5 {[%emt 0:03:46]} 21. Nb6 {[%emt 0:00:36]} Rc7 {[%emt 0:00:45]} 22. cxb5 {[%emt 0:02:54]} axb5 {[%emt 0:01:38]} 23. Bxb5 {[%emt 0:01:11]} Rd8 {[%emt 0:03:55]} 24. Ba4 {[%emt 0:06:19]} Nf4 {[%emt 0:04:26]} 25. Nd5 {[%emt 0:14:01]} Bxd5 {[%emt 0:02:17]} 26. exd5 {[%emt 0:00:07]} Na7 {[%emt 0:02:20]} 27. Nb4 {[%emt 0:03:24]} Qb7 {[%emt 0:03:56]} 28. Rxc7 {[%emt 0:00:43]} Qxc7 {[%emt 0:00:15]} 29. Bxa7 {[%emt 0:00:10]} Qxa7 {[%emt 0:00:43]} 30. Nc6 {[%emt 0:00:06]} Qd7 {[%emt 0:02:06]} 31. Nxd8 {[%emt 0:00:28]} Qxd8 {[%emt 0:00:08]} 32. Qc2 {[%emt 0:01:26]} Qb6 {[%emt 0:02:56]} 33. Rc1 {[%emt 0:04:01]} Qe3 {[%emt 0:03:51]} 34. Qc8+ {[%emt 0:01:03]} Bf8 {[%emt 0:00:17]} 35. Qc3 {[%emt 0:00:44]} Nd3 {[%emt 0:06:25]} 36. Rc2 {[%emt 0:01:38]} Nf2+ {[%emt 0:00:43]} 37. Rxf2 {[%emt 0:00:05]} Qxf2 {[%emt 0:00:20]} 38. Qa1 {[%emt 0:00:11]} f5 {[%emt 0:02:18]} 39. Bb5 {[%emt 0:01:24]} e4 {[%emt 0:01:05]} 40. fxe4 {[%emt 0:00:21]} fxe4 {[%emt 0:00:33]} 41. a4 {[%emt 0:15:20]} e3 {[%emt 0:16:52]} 42. Qf1 {[%emt 0:00:24]} Qd2 {[%emt 0:02:47]} 43. Bc4 {[%emt 0:00:50]} Be7 {[%emt 0:03:00] [#]} 44. g3 $1 {[%emt 0:00:32]} Bf6 {[%emt 0:01:32]} 45. Qe2 {[%emt 0:01:01]} Qc3 {[%emt 0:01:30]} 46. Kg2 {[%emt 0:00:00]} Bd4 {[%emt 0:00:00]} 47. Qd1 {[%emt 0:00:00]} Bc5 {[%emt 0:00:00]} 48. Be2 {[%emt 0:00:00]} Qb4 {[%emt 0:00:00]} 49. Qd3 {[%emt 0:00:00]} Qe1 {[%emt 0:00:00]} 50. Kh3 {[%emt 0:00:00]} Qb4 {[%emt 0:00:00]} 51. Qb5 {[%emt 0:00:00]} Qe4 {[%emt 0:00:00]} 52. Bd3 {[%emt 0:00:00]} Qe5 {[%emt 0:00:00]} 53. Qb8+ {[%emt 0:00:00]} (53. Qb7 $142 Qh5+ 54. Kg2) 53... Kf7 {[%emt 0:00:00]} 54. Qc7+ {[%emt 0:00:00]} Kf6 {[%emt 0:00:00]} 55. Qd8+ {[%emt 0:00:00]} Kf7 {[%emt 0:00:04]} 56. Qd7+ {[%emt 0:00:00]} Kf6 {[%emt 0:00:28]} 57. Qg4 {[%emt 0:00:00]} Ke7 {[%emt 0:05:17]} 58. Qf3 {[%emt 0:00:00]} Bb4 {[%emt 0:03:27]} 59. Qf4 {[%emt 0:03:42]} Qh5+ {[%emt 0:03:58]} 60. Qh4+ {[%emt 0:01:03]} Qxh4+ {[%emt 0:00:09]} 61. Kxh4 {[%emt 0:00:34]} Kf6 {[%emt 0:00:23]} 62. Kg4 {[%emt 0:00:33]} Ke5 {[%emt 0:00:47]} 63. Kf3 {[%emt 0:01:14]} Kd4 {[%emt 0:00:32]} 64. Bc4 {[%emt 0:00:16]} g6 {[%emt 0:00:31]} 65. h3 {[%emt 0:00:54]} g5 {[%emt 0:00:36] [#]} (65... Bd2 $11) 66. h4 {[%emt 0:01:27]} ({Only move:} 66. Kg4 $1 $16) 66... gxh4 {[%emt 0:00:29]} 67. gxh4 {[%emt 0:00:08]} Ba5 {[%emt 0:00:32]} (67... Bd2 $11) 68. h5 {[%emt 0:00:17]} (68. Kf4 $1 $14) 68... Bd2 $1 {[%emt 0:00:41]} 69. Ke2 {[%emt 0:00:27]} Ba5 {[%emt 0:00:31]} 70. Bb5 {[%emt 0:00:48]} Bb4 {[%emt 0:00:26]} 71. Bc4 {[%emt 0:01:24]} Ba5 {[%emt 0:00:09]} 72. Kd1 {[%emt 0:01:19]} Kc3 {[%emt 0:00:40]} 73. Kc1 {[%emt 0:00:34]} Bb4 {[%emt 0:00:11]} 74. Kd1 $11 {[%emt 0:00:23]} Ba5 {[%emt 0:00:25]} 1/2-1/2

[Event "GER-ch Youth-U18w 2022"]
[Site "Willingen"]
[Date "2022.06.11"]
[Round "9.7"]
[White "Kosak, Karolina"]
[Black "Kroemer, Paulina"]
[Result "0-1"]
[ECO "B22"]
[WhiteElo "1471"]
[BlackElo "1583"]
[Annotator "NA RC COMBH"]
[PlyCount "80"]
[EventDate "2022.06.05"]
[EventType "swiss"]
[EventRounds "9"]
[EventCountry "GER"]
[SourceTitle "playchess.com"]
[Source "ChessBase"]
[SourceQuality "1"]
[TimeControl "40/4500+30:900+30"]

1. e4 {[%emt 0:00:00]} c5 {[%emt 0:00:00]} 2. c3 {[%emt 0:00:00]} d5 {[%emt 0:00:00]} 3. exd5 {[%emt 0:00:00]} Qxd5 {[%emt 0:00:00]} 4. d4 {[%emt 0:00:00]} e6 {[%emt 0:00:00]} 5. Nf3 {[%emt 0:00:00]} Nf6 {[%emt 0:00:00]} 6. Na3 {[%emt 0:00:00]} a6 {[%emt 0:00:00]} 7. Nc2 {[%emt 0:08:26]} Nc6 {[%emt 0:00:00]} 8. Be2 {[%emt 0:01:40]} cxd4 {[%emt 0:06:25]} 9. Ncxd4 {[%emt 0:01:51]} Be7 {[%emt 0:03:28]} 10. O-O {[%emt 0:00:29]} O-O {[%emt 0:00:49]} 11. Be3 {[%emt 0:04:19]} b5 {[%emt 0:04:52]} 12. Nxc6 {[%emt 0:03:40]} Qxc6 {[%emt 0:00:04]} 13. Nd4 {[%emt 0:00:36]} Qc7 {[%emt 0:00:31]} 14. Bf3 {[%emt 0:03:55]} Bb7 {[%emt 0:00:56]} 15. Rc1 {[%emt 0:02:03]} Rfd8 {[%emt 0:02:21]} 16. Qe2 {[%emt 0:00:55]} Rac8 {[%emt 0:04:20]} 17. Rfd1 {[%emt 0:00:58]} h6 {[%emt 0:05:20]} 18. h3 {[%emt 0:09:09]} Nd5 {[%emt 0:03:26]} 19. Nb3 {[%emt 0:12:30]} Nxe3 {[%emt 0:05:18]} 20. Qxe3 {[%emt 0:00:50]} Bg5 {[%emt 0:00:42]} 21. Qe2 {[%emt 0:09:41]} Bxf3 {[%emt 0:03:51]} 22. Qxf3 {[%emt 0:01:10]} Bxc1 {[%emt 0:03:45]} 23. Rxc1 {[%emt 0:00:24]} Rd6 {[%emt 0:03:23]} 24. Qe3 {[%emt 0:04:01]} Qc4 {[%emt 0:08:50]} 25. Re1 {[%emt 0:06:31]} Qd3 {[%emt 0:05:30]} 26. Nd4 {[%emt 0:03:23]} Qxe3 {[%emt 0:00:23]} 27. Rxe3 {[%emt 0:00:24]} b4 {[%emt 0:00:49]} 28. Ne2 {[%emt 0:03:25]} Rd2 {[%emt 0:03:22]} 29. Nd4 {[%emt 0:01:10]} bxc3 {[%emt 0:01:56]} 30. bxc3 {[%emt 0:00:14]} Rxa2 {[%emt 0:00:05]} 31. g4 {[%emt 0:02:49]} Ra3 {[%emt 0:00:54]} 32. Ne2 {[%emt 0:00:13]} a5 {[%emt 0:00:22]} 33. Kg2 {[%emt 0:00:44]} a4 {[%emt 0:00:11]} 34. Kf3 {[%emt 0:00:52]} Rc4 {[%emt 0:01:49]} 35. Re5 {[%emt 0:01:35]} Ra1 {[%emt 0:02:24]} 36. h4 {[%emt 0:00:59]} a3 {[%emt 0:00:36]} 37. Ra5 {[%emt 0:00:20]} a2 {[%emt 0:00:40]} 38. Kg3 {[%emt 0:02:10]} Rc8 {[%emt 0:00:38]} 39. Ra3 {[%emt 0:00:53]} Rb8 {[%emt 0:00:36]} 40. Nf4 {[%emt 0:00:41]} Rg1+ {[%emt 0:00:19]} 0-1

[Event "GER-ch Youth-U18w 2022"]
[Site "Willingen"]
[Date "2022.06.11"]
[Round "9.8"]
[White "Goetten Wagner, Julia"]
[Black "Gröschel, Karoline"]
[Result "0-1"]
[ECO "B40"]
[WhiteElo "1631"]
[BlackElo "1546"]
[Annotator "NA RC COMBH"]
[PlyCount "60"]
[EventDate "2022.06.05"]
[EventType "swiss"]
[EventRounds "9"]
[EventCountry "GER"]
[SourceTitle "playchess.com"]
[Source "ChessBase"]
[SourceQuality "1"]
[TimeControl "40/4500+30:900+30"]

1. e4 {[%emt 0:00:00]} c5 {[%emt 0:00:00]} 2. Nf3 {[%emt 0:00:00]} e6 {[%emt 0:00:00]} 3. g3 {[%emt 0:00:00]} d5 {[%emt 0:00:00]} 4. exd5 {[%emt 0:00:00]} exd5 {[%emt 0:00:00]} 5. d4 {[%emt 0:00:00]} Nf6 {[%emt 0:00:00]} 6. Bg2 {[%emt 0:00:00]} Be7 {[%emt 0:00:00]} 7. O-O {[%emt 0:00:00]} O-O {[%emt 0:00:00]} 8. Nbd2 {[%emt 0:00:00]} cxd4 {[%emt 0:00:00]} 9. Nxd4 {[%emt 0:00:00]} Nc6 {[%emt 0:00:00]} 10. N2b3 {[%emt 0:00:00]} a5 {[%emt 0:07:18]} 11. a4 {[%emt 0:04:42]} Bg4 {[%emt 0:02:28]} 12. f3 {[%emt 0:09:36]} Nxd4 {[%emt 0:11:59]} 13. Qxd4 {[%emt 0:05:17]} Bf5 {[%emt 0:04:03]} 14. c3 {[%emt 0:05:22]} Bc2 {[%emt 0:02:58]} 15. Nd2 {[%emt 0:08:43]} Qc7 {[%emt 0:05:22]} 16. Kh1 {[%emt 0:04:44]} Bc5 {[%emt 0:01:22]} 17. Qh4 {[%emt 0:00:25]} Bd3 {[%emt 0:01:42]} 18. Rd1 {[%emt 0:02:30]} Rfe8 {[%emt 0:10:02]} 19. b4 {[%emt 0:12:16]} Be2 {[%emt 0:03:51]} 20. Re1 {[%emt 0:10:14]} Bf2 {[%emt 0:00:37]} 21. Ne4 {[%emt 0:00:53]} Bxe1 {[%emt 0:02:45]} 22. Nxf6+ {[%emt 0:00:17]} gxf6 {[%emt 0:02:28]} 23. Bh6 {[%emt 0:01:16]} Bd3 {[%emt 0:01:19]} 24. Bf1 {[%emt 0:12:55]} Bg6 {[%emt 0:01:41]} 25. Bb5 {[%emt 0:00:25]} Re6 {[%emt 0:03:20]} 26. c4 {[%emt 0:02:17]} Bxb4 {[%emt 0:03:19]} 27. cxd5 {[%emt 0:00:18]} Qc3 {[%emt 0:01:59]} 28. dxe6 {[%emt 0:00:52]} Qxf3+ {[%emt 0:01:04]} 29. Kg1 {[%emt 0:00:29]} Bc5+ {[%emt 0:00:14]} 30. Be3 {[%emt 0:00:19]} Bxe3# 0-1

[Event "GER-ch Youth-U18w 2022"]
[Site "Willingen"]
[Date "2022.06.11"]
[Round "9.9"]
[White "Mueller, Sophie Charlotte"]
[Black "Orlova, Alicia"]
[Result "0-1"]
[ECO "C30"]
[WhiteElo "1509"]
[BlackElo "1724"]
[Annotator "NA RC COMBH"]
[PlyCount "72"]
[EventDate "2022.06.05"]
[EventType "swiss"]
[EventRounds "9"]
[EventCountry "GER"]
[SourceTitle "playchess.com"]
[Source "ChessBase"]
[SourceQuality "1"]
[TimeControl "40/4500+30:900+30"]

1. e4 {[%emt 0:00:00]} e5 {[%emt 0:00:00]} 2. f4 {[%emt 0:00:00]} d6 {[%emt 0:00:00]} 3. Nf3 {[%emt 0:00:00]} Nc6 {[%emt 0:00:00]} 4. Bc4 {[%emt 0:00:00]} Be7 {[%emt 0:00:00]} 5. O-O {[%emt 0:00:00]} Nf6 {[%emt 0:00:00]} 6. Nc3 {[%emt 0:00:00]} Na5 {[%emt 0:00:42]} 7. Be2 {[%emt 0:00:00]} O-O {[%emt 0:10:21]} 8. fxe5 {[%emt 0:00:26]} dxe5 {[%emt 0:00:26]} 9. Kh1 {[%emt 0:05:23]} Bd6 {[%emt 0:02:33]} 10. d3 {[%emt 0:05:11]} h6 {[%emt 0:09:21]} 11. Qe1 {[%emt 0:03:58]} Re8 {[%emt 0:09:00]} 12. Nh4 {[%emt 0:04:03]} Be7 {[%emt 0:07:34]} 13. Qg3 {[%emt 0:08:54]} Nxe4 {[%emt 0:07:00]} 14. Nxe4 {[%emt 0:04:39]} Bxh4 {[%emt 0:00:42]} 15. Qf3 {[%emt 0:00:36]} f5 {[%emt 0:02:04]} 16. Ng3 {[%emt 0:07:57]} f4 {[%emt 0:08:38]} 17. Ne4 {[%emt 0:00:29]} Be6 {[%emt 0:01:11]} 18. b3 {[%emt 0:16:00]} Nc6 {[%emt 0:01:03]} 19. Bb2 {[%emt 0:00:58]} Bf7 {[%emt 0:02:43]} 20. c3 {[%emt 0:00:56]} Ne7 {[%emt 0:02:12]} 21. g3 {[%emt 0:07:11]} Bg5 {[%emt 0:01:41]} 22. h4 {[%emt 0:00:31]} Bf6 {[%emt 0:00:24]} 23. Nxf6+ {[%emt 0:00:30]} gxf6 {[%emt 0:00:14]} 24. Qg4+ {[%emt 0:00:11]} Kh7 {[%emt 0:01:13]} 25. gxf4 {[%emt 0:03:54]} Rg8 {[%emt 0:02:10]} 26. Qh3 {[%emt 0:01:06]} Bd5+ {[%emt 0:01:15]} 27. Bf3 {[%emt 0:00:35]} exf4 {[%emt 0:00:49]} 28. c4 {[%emt 0:01:33]} Rg3 {[%emt 0:00:51]} 29. Qxg3 {[%emt 0:03:41]} fxg3 {[%emt 0:00:08]} 30. cxd5 {[%emt 0:01:07]} Qd7 {[%emt 0:02:04]} 31. Be4+ {[%emt 0:01:17]} f5 {[%emt 0:00:34]} 32. Bg2 {[%emt 0:02:21]} Rf8 {[%emt 0:05:13]} 33. Bh3 {[%emt 0:04:06]} Qxd5+ {[%emt 0:01:14]} 34. Bg2 {[%emt 0:00:10]} Qd8 {[%emt 0:01:42]} 35. Ba3 {[%emt 0:01:17]} Ng6 {[%emt 0:00:46]} 36. Bxf8 {[%emt 0:01:49]} Qxh4+ {[%emt 0:00:19]} 0-1

[Event "GER-ch Youth-U18w 2022"]
[Site "Willingen"]
[Date "2022.06.11"]
[Round "9.10"]
[White "Albayrak, Nese Pinar"]
[Black "Kieckbusch, Lotta"]
[Result "1/2-1/2"]
[ECO "C42"]
[WhiteElo "1683"]
[BlackElo "1207"]
[Annotator "NA RC COMBH"]
[PlyCount "101"]
[EventDate "2022.06.05"]
[EventType "swiss"]
[EventRounds "9"]
[EventCountry "GER"]
[SourceTitle "playchess.com"]
[Source "ChessBase"]
[SourceQuality "1"]
[TimeControl "40/4500+30:900+30"]

1. e4 {[%emt 0:00:00]} e5 {[%emt 0:00:00]} 2. Nf3 {[%emt 0:00:00]} Nf6 {[%emt 0:00:00]} 3. Nxe5 {[%emt 0:00:00]} Nc6 {[%emt 0:00:00]} 4. Nxc6 {[%emt 0:00:00]} dxc6 {[%emt 0:00:00]} 5. e5 {[%emt 0:00:00]} Nd7 {[%emt 0:00:00]} 6. d4 {[%emt 0:00:00]} c5 {[%emt 0:00:00]} 7. Bf4 {[%emt 0:20:41]} cxd4 {[%emt 0:00:00]} 8. Qxd4 {[%emt 0:00:08]} Bc5 {[%emt 0:00:20]} 9. Qd1 {[%emt 0:07:41]} Qe7 {[%emt 0:05:12]} 10. Qe2 {[%emt 0:07:52]} O-O {[%emt 0:02:18]} 11. Nd2 {[%emt 0:12:50]} Bd4 {[%emt 0:10:46]} 12. c3 {[%emt 0:06:44]} Bxe5 {[%emt 0:03:37]} 13. Nf3 {[%emt 0:03:39]} Re8 {[%emt 0:04:51]} 14. Nxe5 {[%emt 0:00:20]} Nxe5 {[%emt 0:00:53]} 15. O-O-O {[%emt 0:03:19]} Bf5 {[%emt 0:05:18]} 16. Rd5 {[%emt 0:04:30]} Nd3+ {[%emt 0:05:13]} 17. Rxd3 {[%emt 0:00:26]} Qxe2 {[%emt 0:00:13]} 18. Bxe2 {[%emt 0:00:05]} Rxe2 {[%emt 0:00:38]} 19. Rd2 {[%emt 0:00:20]} Rxd2 {[%emt 0:01:03]} 20. Kxd2 {[%emt 0:00:36]} c6 {[%emt 0:02:35]} 21. Bc7 {[%emt 0:01:35]} Rc8 {[%emt 0:02:16]} 22. Re1 {[%emt 0:06:39]} Be6 {[%emt 0:01:40]} 23. Bf4 {[%emt 0:00:12]} Rd8+ {[%emt 0:02:16]} 24. Kc2 {[%emt 0:00:14]} Kf8 {[%emt 0:01:48]} 25. b3 {[%emt 0:01:20]} b5 {[%emt 0:05:31]} 26. Be3 {[%emt 0:01:38]} a6 {[%emt 0:01:35]} 27. Bd4 {[%emt 0:00:32]} g6 {[%emt 0:03:42]} 28. Rd1 {[%emt 0:01:08]} Ke8 {[%emt 0:01:31]} 29. Ra1 {[%emt 0:01:20]} Ra8 {[%emt 0:06:32]} 30. a4 {[%emt 0:00:27]} Bd5 {[%emt 0:04:27]} 31. g3 {[%emt 0:00:22]} Kd7 {[%emt 0:00:45]} 32. axb5 {[%emt 0:00:10]} cxb5 {[%emt 0:00:31]} 33. Bc5 {[%emt 0:00:39]} Kc6 {[%emt 0:05:16]} 34. b4 {[%emt 0:01:02]} Be6 {[%emt 0:04:03]} 35. h4 {[%emt 0:00:42]} h5 {[%emt 0:01:17]} 36. Kd2 {[%emt 0:00:19]} Kb7 {[%emt 0:01:44]} 37. Be7 {[%emt 0:00:44]} Re8 {[%emt 0:00:51]} 38. Bc5 {[%emt 0:01:05]} Bg4 {[%emt 0:01:09]} 39. Be3 {[%emt 0:00:16]} Re6 {[%emt 0:00:50]} 40. Re1 {[%emt 0:00:44]} Re8 {[%emt 0:01:22]} 41. Rf1 {[%emt 0:16:20]} Bh3 {[%emt 0:16:02]} 42. Rg1 {[%emt 0:00:00]} Bg4 {[%emt 0:00:00]} 43. Kd3 {[%emt 0:00:00]} Re6 {[%emt 0:00:00]} 44. Rc1 {[%emt 0:00:00]} Rd6+ {[%emt 0:00:00]} 45. Bd4 {[%emt 0:00:00]} Re6 {[%emt 0:00:00]} 46. Be3 {[%emt 0:00:00]} Rd6+ {[%emt 0:00:00]} 47. Kc2 {[%emt 0:00:00]} Bf3 {[%emt 0:00:00]} 48. Re1 {[%emt 0:00:00]} Re6 {[%emt 0:00:00]} 49. Kd2 {[%emt 0:00:57]} Bd5 {[%emt 0:00:00]} 50. Rd1 {[%emt 0:01:41]} Bf3 {[%emt 0:00:00]} 51. Re1 {[%emt 0:01:57]} 1/2-1/2